Cogmind - Beta 14 @@@ ROGUE MODE // 2024.08.22 @ 14:15:03 Player: ILikeVoltron Result: Destroyed by L-31 Rogue with Katana Performance ------------- Evolutions (1) 500 Regions Visited (2) 400 Robots Destroyed (20) 100 Value Destroyed (433) 433 Prototype IDs (2) 40 Alien Tech Used (0) 0 Bonus (0) 0 TOTAL SCORE: 1473 Bonus ------- None Cogmind --------- Core Integrity 0/400 Matter 297/300 Energy 82/100 System Corruption 0% Temperature Cool (0) Movement Core (350) Ox6 Location -9/Materials Parts ------- > --- POWER (1) -------- (None) > --- PROPULSION (3) --- (None) > --- UTILITY (3) ------ Large Storage Unit > --- WEAPON (2) ------- (None) > --- INVENTORY (15) --- Medium Matter Pod (100) Structural Scanner Sensor Array Terrain Scan Processor Seismic Detector Tractor Beam Peak State ------------ > --- POWER ------------ Ion Engine > --- PROPULSION ------- Aluminum Leg Aluminum Leg Aluminum Leg > --- UTILITY ---------- Large Storage Unit Improved Terrain Scanner Light Armor Plating > --- WEAPON ----------- Medium Laser Assault Rifle > --- INVENTORY -------- Medium Matter Pod Structural Scanner Sensor Array Terrain Scan Processor Seismic Detector Tractor Beam Mining Laser [Rating: 11] Favorites ----------- Power Ion Engine Engine Ion Engine Propulsion Aluminum Leg Leg Aluminum Leg Utility Improved Terrain Scanner Device Improved Terrain Scanner Storage Small Storage Unit Protection Light Armor Plating Weapon Medium Laser Energy Gun Medium Laser Ballistic Gun Assault Rifle Special Weapon Mining Laser Build | -11 -10 -9 ------- Run | Yrd Mat Mat Slots Evolved 2 | . . 2 Power . | . . . Propulsion 1 | . . 1 Utility 1 | . . 1 Weapon . | . . . Parts Attached 9 | 2 2 5 Power 1 | . . 1 Engine 1 | . . 1 Core . | . . . Reactor . | . . . Propulsion 3 | . 1 2 Treads . | . . . Leg 3 | . 1 2 Wheel . | . . . Hover . | . . . Flight . | . . . Utility 4 | 2 1 1 Device 2 | 2 . . Storage 1 | . 1 . Processor . | . . . Hackware . | . . . Protection 1 | . . 1 Artifact . | . . . Weapon 1 | . . 1 Energy Gun . | . . . Energy Cannon . | . . . Ballistic Gun . | . . . Ballistic Cannon . | . . . Launcher . | . . . Special Weapon 1 | . . 1 Impact Weapon . | . . . Slashing Weapon . | . . . Piercing Weapon . | . . . Special Melee Weapon . | . . . Unidentified Prototypes . | . . . Parts Lost 10 | . . 10 Power 2 | . . 2 Propulsion 3 | . . 3 Utility 2 | . . 2 Weapon 3 | . . 3 Highest Loss Streak 9 | . . 9 To Critical Strikes . | . . . Average Slot Usage (%) 91 | . 100 74 Engine 11 | . 14 4 Leg 26 | . 28 22 Device 12 | . 14 10 Storage 13 | . 14 11 Protection 2 | . . 7 Energy Gun 12 | . 14 9 Ballistic Gun 12 | . 14 8 Peak Build Rating 11 | 9 9 11 Average Rating 8 | 7 9 8 On Entrance 8 | 6 9 9 Naked Turns . | . . . Heaviest Build 33 | 15 30 33 Greatest Support 30 | 20 20 30 Greatest Overweight (x) 6 | . 1 6 Average Overweight (x) . | . . . Largest Inventory Capacity 15 | 8 15 15 Average Capacity 10 | 8 9 15 Most Carried 8 | 8 8 8 Average Carried 7 | 6 7 7 Final Capacity 15 | 8 15 15 Final Carried 8 | 8 8 6 Class Distribution -------------------- 100% | Mutant Dominant Class ---------------- Mutant | -10/Materials Mutant | -9/Materials Resources | -11 -10 -9 ----------- Run | Yrd Mat Mat Matter Collected 546 | 232 228 86 Remotely . | . . . Salvage Created 667 | 119 310 238 Parts 44 | 6 20 18 Haulers Intercepted 1 | . 1 . Recyclers Shooed 2 | . 1 1 Parts Field Recycled . | . . . Retrieved Matter . | . . . Parts Self-Destructed . | . . . Prevented . | . . . Kills | -11 -10 -9 ------- Run | Yrd Mat Mat Combat Hostiles Destroyed 13 | . 7 6 Guns 13 | . 7 6 Classes Destroyed 8 | 2 5 1 Builder 1 | . 1 . Tunneler 2 | 2 . . Hauler 1 | . 1 . Recycler 1 | 1 . . Watcher 2 | . 1 1 Swarmer 5 | . 3 2 Grunt 7 | . 4 3 Duelist 1 | . . 1 Best Kill Streak 4 | 2 4 2 Combat Bots Only 3 | . 3 2 Max Kills in Single Turn 1 | 1 1 1 Gunslinging . | . . . Exploded . | . . . Melee . | . . . Uniques/NPCs Destroyed . | . . . Combat | -11 -10 -9 -------- Run | Yrd Mat Mat Hostile Shots Fired 126 | . 39 87 Missed 32 | . 12 20 Damage Taken 1362 | . 317 1045 Core 507 | . 88 419 Absorbed by Shields . | . . . Core Remaining (%) 82 | 100 64 . Volleys Fired 77 | 5 35 37 Largest 2 | 2 2 2 Hottest 100 | 70 70 100 Shots Fired 145 | 10 70 65 Gun 143 | 10 70 63 Cannon . | . . . Launcher . | . . . Special 2 | . . 2 Kinetic 68 | 5 35 28 Thermal 77 | 5 35 37 Explosive . | . . . Electromagnetic . | . . . Robot Hit Streak 10 | 6 8 10 Robot Miss Streak 4 | 1 4 3 Penetration Max . | . . . Secondary Targets . | . . . Shots Hit Robots 90 | 8 43 39 Core Hits 38 | 4 18 16 Critical Kills . | . . . Critical Parts Destroyed . | . . . Critical Strikes 6 | 1 2 3 Burn 6 | 1 2 3 Melee Attacks . | . . . Impact . | . . . Slashing . | . . . Piercing . | . . . Sneak Attacks . | . . . Combat Hostiles . | . . . Follow-up Attacks . | . . . Damage Inflicted 1214 | 103 543 568 Guns 1214 | 103 543 568 Cannons . | . . . Explosions . | . . . Melee . | . . . Ramming . | . . . Kinetic 630 | 55 306 269 Thermal 584 | 48 237 299 Explosive . | . . . Electromagnetic . | . . . Impact . | . . . Slashing . | . . . Piercing . | . . . Highest Corruption . | . . . Average Corruption . | . . . Corruption Purged . | . . . Corruption Blocked . | . . . Overload Shots . | . . . Overflow Damage . | . . . Projectiles . | . . . Explosions . | . . . Melee . | . . . Knockbacks . | . . . Impact . | . . . Kinetic . | . . . Secondary . | . . . Self-Inflicted Damage . | . . . Shots . | . . . Rammed . | . . . Targets Rammed . | . . . Kicked . | . . . Crushed . | . . . Highest Temperature 252 | 36 252 114 Average Temperature 66 | 16 81 50 Received Heat Transfer 447 | . 171 276 Siege Activations . | . . . Robots Corrupted . | . . . Combat Hostiles . | . . . Parts Fried . | . . . Impact Corruptions . | . . . Robots Melted . | . . . Combat Hostiles . | . . . Parts Melted 6 | 1 2 3 Heat Transferred 2183 | 222 851 1110 Parts Sabotaged . | . . . Parts Stolen . | . . . Parts Stripped . | . . . Power Chain Reactions . | . . . Alert | -11 -10 -9 ------- Run | Yrd Mat Mat Peak Influence 279 | 15 279 175 Initial 33 | . 9 33 Average 113 | 8 134 97 Maximum Alert Level 1 | . 1 . Low Security (%) 90 | 100 85 100 Level 1 9 | . 14 . Level 2 . | . . . Level 3 . | . . . Level 4 . | . . . Level 5 . | . . . High Security . | . . . Max Security . | . . . Squads Dispatched 1 | . 1 . Investigation . | . . . Extermination . | . . . Reinforcement 1 | . 1 . Assault . | . . . Garrison . | . . . Intercept . | . . . Searches Triggered . | . . . Construction Impeded . | . . . Haulers Reinforced . | . . . Active Scanning Responses . | . . . Cargo Convoy Interrupts . | . . . Stealth | -11 -10 -9 --------- Run | Yrd Mat Mat Distress Signals 2 | . 1 1 Communications Jammed . | . . . Distress Signals . | . . . Times Spotted 22 | . 12 10 Peak Tracking Total 4 | . 4 4 Tactical Retreats 2 | . 2 . Traps | -11 -10 -9 ------- Run | Yrd Mat Mat Traps Triggered . | . . . Indirectly . | . . . Trap Hack Attempts . | . . . Triggered . | . . . Disarmed . | . . . Reprogrammed . | . . . Reused . | . . . Traps Extracted . | . . . Installed . | . . . Triggered . | . . . Machines | -11 -10 -9 ---------- Run | Yrd Mat Mat Machines Disabled . | . . . Max in Single Turn . | . . . Machines Repaired . | . . . Machines Dismantled . | . . . Machines Sabotaged . | . . . Overloaded Fab Kills . | . . . Hacking | -11 -10 -9 --------- Run | Yrd Mat Mat Machines Accessed 3 | . 3 . Terminals 3 | . 3 . Fabricators . | . . . Repair Stations . | . . . Recycling Units . | . . . Scanalyzers . | . . . Garrison Access . | . . . Total Hacks 3 | . 3 . Successful 1 | . 1 . Failed 2 | . 2 . Catastrophic . | . . . Database Lockouts . | . . . Manual . | . . . Terminals 3 | . 3 . Fabricators . | . . . Repair Stations . | . . . Recycling Units . | . . . Scanalyzers . | . . . Garrison Access . | . . . Terminal Hacks 1 | . 1 . Prototype ID Bank 1 | . 1 . Fabricator Hacks . | . . . Repair Station Hacks . | . . . Recycling Unit Hacks . | . . . Scanalyzer . | . . . Garrison Access Hacks . | . . . Unauthorized Hacks . | . . . Terminals . | . . . Fabricators . | . . . Repair Stations . | . . . Recycling Units . | . . . Scanalyzers . | . . . Garrison Access . | . . . Data Cores Recovered . | . . . Used . | . . . Hacking Detections 2 | . 2 . Full Trace Events . | . . . Feedback Events . | . . . Feedback Blocked . | . . . Robot Schematics Acquired . | . . . Robots Built . | . . . Authchips . | . . . Time . | . . . Total Robot Build Rating . | . . . Part Schematics Acquired . | . . . Parts Built . | . . . Authchips . | . . . Time . | . . . Total Part Build Rating . | . . . Parts Repaired . | . . . Time . | . . . Parts Recycled . | . . . Recycled Matter . | . . . Retrieved Matter . | . . . Retrieved Components . | . . . Parts Scanalyzed . | . . . Part Schematics Acquired . | . . . Parts Damaged . | . . . Bothacking | -11 -10 -9 ------------ Run | Yrd Mat Mat Used RIF Installer . | . . . Robots Hacked . | . . . Non-combat . | . . . Combat . | . . . Robot Hacks Applied . | . . . Relay Couplers Released . | . . . Fabnet Peak Effective % . | . . . Robots Rewired . | . . . Allies Hacked . | . . . Hacks Repelled . | . . . Allies | -11 -10 -9 -------- Run | Yrd Mat Mat Total Allies . | . . . Largest Group . | . . . Highest-Rated Group . | . . . Highest-Rated Ally . | . . . Total Orders . | . . . Ally Attacks . | . . . Total Damage . | . . . Kills . | . . . Allies Corrupted . | . . . Allies Melted . | . . . Intel | -11 -10 -9 ------- Run | Yrd Mat Mat Robot Analysis Total . | . . . Derelict Logs Recovered . | . . . Drone Launches . | . . . Drone Recoveries . | . . . Exploration | -11 -10 -9 ------------- Run | Yrd Mat Mat Turns Passed 771 | 61 482 228 Spaces Moved 348 | 25 266 57 Core 1 | . . 1 Treads . | . . . Legs 347 | 25 266 56 Wheels . | . . . Hover . | . . . Flight . | . . . Fastest Speed 120 | 120 120 120 Average Speed 137 | 120 132 169 Slowest Speed 350 | 120 190 350 Overloaded Moves . | . . . Propulsion Burnouts . | . . . Robots Hopped . | . . . Cave-ins Triggered . | . . . Exploration Rate (%) 20 | 5 45 10 Regions Visited 2 Branch Regions . Pre-discovered Areas . | . . . Known Exits Taken . | . . . Unknown Exits Taken 2 | 1 1 . Scrap Searched . | . . . Spaces Dug . | . . . Terrain Destroyed 1 | . . 1 Melee . | . . . Projectile 1 | . . 1 AOE . | . . . Terrain Rammed . | . . . Walls Destroyed . | . . . Machines Disabled . | . . . Actions | -11 -10 -9 --------- Run | Yrd Mat Mat Total 494 | 45 331 118 Wait 44 | 10 15 19 Move 346 | 24 265 57 Hop . | . . . Pick Up 9 | 3 6 . Fast Attach 4 | 1 . 3 Attach 2 | . . 2 Detach . | . . . Swap 3 | 1 2 . Drop 9 | 1 8 . Fire 77 | 5 35 37 Melee . | . . . Ram . | . . . Kick . | . . . Crush . | . . . Escape Stasis . | . . . Rewire . | . . . Trap . | . . . Miscellaneous . | . . . Route ------- -11/Scrapyard -10/Materials (discovered 2 exits: [*Mat] / [*Min]) -9/Materials History --------- Turn | Location | Event 22 | -11/Scrapyard | Discovered new exit (range 3) 62 | -11/Scrapyard | Entered Materials 200 | -10/Materials | Discovered new exit (range 5) 307 | -10/Materials | Build established: Mutant 378 | -10/Materials | Discovered new exit (range 14) 544 | -10/Materials | Entered another Materials area 544 | -9/Materials | Evolved 2 slots: Propulsion x1, Utility x1 753 | -9/Materials | Core integrity fell below 50% 768 | -9/Materials | Core integrity fell below 20% 772 | -9/Materials | Destroyed by L-31 Rogue with Katana Last Messages --------------- 00730_ R-06 Scavenger collects Core Shielding. 00735_ G-34 Mercenary destroyed. 00735_ R-06 Scavenger collects Aluminum Leg. 00737_ M-13 Machinist repairs R-06 Scavenger. 00738_ R-06 Scavenger collects Heat Sink. 00738_ K-01 Serf collects debris. 00738_ R-06 Scavenger collects Sml. Laser. 00739_ G-34 Mercenary suffers critical hit (Burn). 00742_ Imp. Ion Engine destroyed. 00744_ K-01 Serf collects debris. 00744_ M-13 Machinist repairs G-34 Mercenary. 00745_ Med. Laser destroyed. 00745_ Lgt. Armor Plating destroyed. 00745_ Aluminum Leg destroyed. 00747_ K-01 Serf collects debris. 00749_ Aluminum Leg destroyed. 00751_ M-13 Machinist repairs L-31 Rogue. 00751_ Imp. Terrain Scanner destroyed. 00756_ R-06 Scavenger collects Ion Engine. 00759_ Mining Laser destroyed. Map ----- +----------------------------------------------------+ | ?????????????????????????????????????????????????? | | ?????????????????????????????????????????????????? | | ?????????????????????????????????????????????????? | | ?????????????????????????????????????????????????? | | ?????????????????????????????????????????????????? | | ?????????????????????????????????????????????????? | | ?????????????????????????????????????????????????? | | ?????????????????????????????????????????????????? | | ?????????????????????????????????????????????????? | | ????????????????????????????????????????????????#? | | ?????????????????????????????????????????????????? | | ???????????????????????#?????????????????????????? | | ????????????????????????#????????????????????????? | | ?????????????????????????????????????????????????? | | ??????????????????????????? ? ?? ?????????????? | | ????????????????????????????? ?? ??????????? | | ???????????????????????????? #????????????? | | ??????????????????????? ????? #????????????? | | ??????????????????????????????[ +???? ???????? | | ??????????????????????????????[ #??????"??#### | | ??????????????????????????????? #???"?????# | | ???????????????????????????????# #?????"???# | | ???????????????????????????????# #???????#?# | | ???????????? ??#?????????#??##?# #?????????# | | ???????????????????#????###????# #???????#?# | | ?????????????????????####@###### #??#??????# | | ?????????????????????# lu # #?##???#### | | ??????????????????##?# """g""" # ########## | | ?????????????????????# """%""" # | | ??????????????#??#??## """ """ + % | | ??????????????#??????# # % | | ?????????????????????#! r # ########### | | ??????#??????????????# r # #???#?????##### | | ??????????#??????????# # #? ???????????# | | ???????#### ############r##### +??? ?????????? | | ?????? "%" % "%" #??""???"?????? | | ?????? % % " # ?"???"??????? | | ?????? #?????????????# | | ?????????##### = ##############?????????????? | | ?????????????# #????????????#? ?? ???????#? | | ????????? ???# """ #???????#?#???? ???????????? | | ??????????? ?# """ #????#???#?????????????????? | | ?????????????# """ #?????????????????#????????? | | ?????????????# ! ????????????#??#??????????? | | ??????????????? % ????????????#?????????????? | | ??????????????? ????????"?????#???????????? | | ?????????????? ??????????????????#???????? | | ?????????????? ???????????????#??????????? | | ?????????????? T ??? ??????????????????????? | | ?????????????? ??????"???????????????????? | +----------------------------------------------------+ Best States ------------- Heat Dissipation 28 Energy Generation 12 Energy Capacity 265 Matter Stores 300 Matter Capacity 300 Sight Range 16 Terrain Scan Range 16 Terrain Scan Density 10 Armor Coverage 150 Evasion (%) 55 Item Schematics ----------------- None Robot Schematics ------------------ None Fabricated ------------ Nothing Alien Tech Used ----------------- None Achievements -------------- None Challenges ------------ None Game ------ Seed LightBackupMembrane Manual? 0 Play Time 00:09:46 Cumulative 152.1 hours Start 2024.08.22 @ 14:07:19 End 2024.08.22 @ 14:15:03 Sessions 1 Manual Loads 0 Difficulty Rogue Special Mode None Game No. 271 Rogue 267 Adventurer 0 Explorer 4 Win Type - Total 0 Types 0/0/0/0/0/0/0/0/0 Lore% 19 Gallery% 45 Achievement% 34 Wizard Run 0 Options --------- Layout 1 ASCII 0 Keyboard 1 Movement Arrows Keybinds 0 Fullscreen 1 Font 32/Proggy Map View 130x35 Zoom Use 0% Tactical HUD 1 Map Filters NONE Filters NONE Steam 0 RUN: 49ac6c60-3461-4533-9886-9d88f5672f22